[Event "GER-ch Youth U12W 2020"]
[Site "Willingen"]
[Date "2020.10.31"]
[Round "7.15"]
[White "Flierl, Veronika"]
[Black "Bako, Evelin"]
[Result "1-0"]
[ECO "C42"]
[WhiteElo "1404"]
[BlackElo "1192"]
[Annotator "NA RC"]
[PlyCount "87"]
[EventDate "2020.10.27"]
[EventType "swiss"]
[EventRounds "7"]
[EventCountry "GER"]
[SourceTitle "playchess.com"]
[Source "ChessBase"]
[SourceQuality "1"]
[TimeControl "40/5400+30:1800+30"]

1. e4 {[%emt 0:00:00]} e5 {[%emt 0:00:00]} 2. Nf3 {[%emt 0:00:00]} Nf6 {[%emt 0:00:00]} 3. Nxe5 {[%emt 0:00:00]} d6 {[%emt 0:00:00]} 4. Nf3 {[%emt 0:00:00]} Nxe4 {[%emt 0:00:06]} 5. d3 {[%emt 0:00:02]} Nf6 {[%emt 0:00:18]} 6. d4 {[%emt 0:00:05]} d5 {[%emt 0:00:39]} 7. Bd3 {[%emt 0:00:07]} Nc6 {[%emt 0:01:02]} 8. h3 {[%emt 0:06:35]} Be6 {[%emt 0:01:07]} 9. Bf4 {[%emt 0:02:54]} Be7 {[%emt 0:01:09]} 10. O-O {[%emt 0:01:13]} O-O {[%emt 0:01:13]} 11. Nbd2 {[%emt 0:04:26]} Nb4 {[%emt 0:01:50]} 12. Be2 {[%emt 0:02:03]} Nc6 {[%emt 0:02:12]} 13. Bd3 {[%emt 0:00:49]} Nb4 {[%emt 0:00:53]} 14. Be2 {[%emt 0:00:11]} Bf5 {[%emt 0:01:04]} 15. c3 {[%emt 0:01:00]} Nd3 {[%emt 0:02:14]} 16. Bh2 {[%emt 0:02:59]} Nxb2 {[%emt 0:01:59]} 17. Qb3 {[%emt 0:03:09]} Nc4 {[%emt 0:05:17]} 18. Nxc4 {[%emt 0:00:54]} dxc4 {[%emt 0:00:07]} 19. Bxc4 {[%emt 0:00:13]} b6 {[%emt 0:01:03]} 20. Ne5 {[%emt 0:01:12]} Bg6 {[%emt 0:02:26]} 21. Rfe1 {[%emt 0:03:38]} Bd6 {[%emt 0:00:48]} 22. Nc6 {[%emt 0:01:24]} Bxh2+ {[%emt 0:00:21]} 23. Kxh2 {[%emt 0:00:06]} Qd6+ {[%emt 0:00:24]} 24. Ne5 {[%emt 0:00:06]} Rae8 {[%emt 0:00:46]} 25. Kg1 {[%emt 0:01:25]} Ne4 {[%emt 0:05:09]} 26. Rxe4 {[%emt 0:03:29]} Bxe4 {[%emt 0:00:20]} 27. Bxf7+ {[%emt 0:00:14]} Kh8 {[%emt 0:01:02]} 28. Bxe8 {[%emt 0:00:10]} Bd5 {[%emt 0:01:50]} 29. Qa4 {[%emt 0:01:11]} Qf6 {[%emt 0:02:26]} 30. Rf1 {[%emt 0:01:02]} Qg5 {[%emt 0:02:29]} 31. Ng4 {[%emt 0:01:55]} h5 {[%emt 0:02:39]} 32. Ne3 {[%emt 0:00:40]} Be6 {[%emt 0:02:54]} 33. Bd7 {[%emt 0:00:58]} Bxd7 {[%emt 0:03:19]} 34. Qxd7 {[%emt 0:00:06]} Qa5 {[%emt 0:00:36]} 35. Qe7 {[%emt 0:04:52]} Rg8 {[%emt 0:00:52]} 36. Qf7 {[%emt 0:05:03]} g6 {[%emt 0:00:43]} 37. Qf6+ {[%emt 0:13:27]} Rg7 {[%emt 0:03:25]} 38. Nc4 {[%emt 0:05:22]} Qxa2 {[%emt 0:00:20]} 39. Ne5 {[%emt 0:00:09]} Kh7 {[%emt 0:00:30]} 40. Re1 {[%emt 0:00:35]} Qd2 {[%emt 0:00:56]} 41. Nf3 {[%emt 0:30:22]} Qxc3 {[%emt 0:30:14]} 42. Ng5+ {[%emt 0:02:24]} Kh6 {[%emt 0:00:22]} 43. Re8 {[%emt 0:01:44]} Qc1+ {[%emt 0:03:03]} 44. Kh2 {[%emt 0:00:12]} 1-0

[Event "GER-ch Youth U12W 2020"]
[Site "Willingen"]
[Date "2020.10.31"]
[Round "7.16"]
[White "Moldovan, Tatiana"]
[Black "Khanbekyan, Nare"]
[Result "1-0"]
[ECO "B24"]
[WhiteElo "1516"]
[BlackElo "1329"]
[Annotator "NA RC"]
[PlyCount "73"]
[EventDate "2020.10.27"]
[EventType "swiss"]
[EventRounds "7"]
[EventCountry "GER"]
[SourceTitle "playchess.com"]
[Source "ChessBase"]
[SourceQuality "1"]
[TimeControl "40/5400+30:1800+30"]

1. e4 {[%emt 0:02:24]} c5 {[%emt 0:00:00]} 2. Nc3 {[%emt 0:00:19]} Nc6 {[%emt 0:00:22]} 3. Bb5 {[%emt 0:00:37]} g6 {[%emt 0:00:35]} 4. Bxc6 {[%emt 0:00:46]} bxc6 {[%emt 0:00:42]} 5. d3 {[%emt 0:00:14]} Bg7 {[%emt 0:01:06]} 6. f4 {[%emt 0:00:37]} d5 {[%emt 0:02:03]} 7. Nf3 {[%emt 0:04:25]} f6 {[%emt 0:05:51]} 8. O-O {[%emt 0:01:34]} e5 {[%emt 0:00:51]} 9. fxe5 {[%emt 0:00:21]} fxe5 {[%emt 0:00:13]} 10. Ng5 {[%emt 0:01:15]} Nf6 {[%emt 0:00:39]} 11. Nf3 {[%emt 0:02:15]} Bg4 {[%emt 0:01:30]} 12. h3 {[%emt 0:01:04]} Bxf3 {[%emt 0:00:22]} 13. Rxf3 {[%emt 0:01:15]} O-O {[%emt 0:02:36]} 14. exd5 {[%emt 0:00:26]} cxd5 {[%emt 0:00:17]} 15. Bg5 {[%emt 0:01:02]} Qd6 {[%emt 0:03:48]} 16. Qd2 {[%emt 0:08:59]} Qb6 {[%emt 0:05:30]} 17. Bxf6 {[%emt 0:02:36]} Bxf6 {[%emt 0:01:02]} 18. Nxd5 {[%emt 0:00:13]} Qxb2 {[%emt 0:05:10]} 19. Raf1 {[%emt 0:00:31]} Qd4+ {[%emt 0:02:23]} 20. Ne3 {[%emt 0:00:34]} Bg5 {[%emt 0:02:37]} 21. Rxf8+ {[%emt 0:00:18]} Rxf8 {[%emt 0:00:10]} 22. Rxf8+ {[%emt 0:00:05]} Kxf8 {[%emt 0:00:12]} 23. Qf2+ {[%emt 0:00:26]} Ke7 {[%emt 0:01:10]} 24. Nc4 {[%emt 0:00:27]} Qa1+ {[%emt 0:02:36]} 25. Kh2 {[%emt 0:00:33]} Qxa2 {[%emt 0:03:53]} 26. Qxc5+ {[%emt 0:00:15]} Kf7 {[%emt 0:02:31]} 27. Nxe5+ Kg7 {[%emt 0:03:30]} 28. Qc7+ {[%emt 0:07:38]} Kf8 {[%emt 0:13:00]} 29. Nd7+ {[%emt 0:02:06]} Kf7 {[%emt 0:03:23]} 30. Nc5+ {[%emt 0:01:33]} Kf8 {[%emt 0:03:04]} 31. Nb3 {[%emt 0:01:23]} a6 {[%emt 0:05:08]} 32. d4 {[%emt 0:05:10]} Qb2 {[%emt 0:04:59]} 33. d5 {[%emt 0:03:21]} h6 {[%emt 0:04:31]} 34. Nc5 {[%emt 0:01:28]} Bf6 {[%emt 0:01:44]} 35. Ne6+ {[%emt 0:01:53]} Ke8 {[%emt 0:04:01]} 36. Qc8+ {[%emt 0:01:43]} Kf7 {[%emt 0:02:09]} 37. Qf8# 1-0

[Event "GER-ch Youth U12W 2020"]
[Site "Willingen"]
[Date "2020.10.31"]
[Round "7.17"]
[White "Müller, Riyanna"]
[Black "Rosin, Ida"]
[Result "1-0"]
[ECO "B40"]
[WhiteElo "1460"]
[BlackElo "1387"]
[Annotator "NA RC"]
[PlyCount "59"]
[EventDate "2020.10.27"]
[EventType "swiss"]
[EventRounds "7"]
[EventCountry "GER"]
[SourceTitle "playchess.com"]
[Source "ChessBase"]
[SourceQuality "1"]
[TimeControl "40/5400+30:1800+30"]

1. e4 {[%emt 0:00:00]} c5 {[%emt 0:00:00]} 2. Nf3 {[%emt 0:00:27]} e6 {[%emt 0:00:01]} 3. c3 {[%emt 0:01:13]} Nc6 {[%emt 0:01:08]} 4. d4 {[%emt 0:01:27]} d5 {[%emt 0:00:42]} 5. exd5 {[%emt 0:01:06]} exd5 {[%emt 0:00:24]} 6. Bb5 {[%emt 0:01:34]} Bd7 {[%emt 0:02:11]} 7. O-O {[%emt 0:01:54]} Bd6 {[%emt 0:01:20]} 8. dxc5 {[%emt 0:01:52]} Bxc5 {[%emt 0:02:52]} 9. Qxd5 {[%emt 0:04:11]} Be7 {[%emt 0:02:52]} 10. Nbd2 {[%emt 0:04:40]} Nf6 {[%emt 0:00:46]} 11. Qd3 {[%emt 0:00:55]} a6 {[%emt 0:02:04]} 12. Bc4 {[%emt 0:02:40]} O-O {[%emt 0:01:55]} 13. Ne4 {[%emt 0:03:27]} b5 {[%emt 0:03:37]} 14. Bb3 {[%emt 0:02:03]} Qc8 {[%emt 0:06:02]} 15. Bc2 {[%emt 0:03:51]} g6 {[%emt 0:03:25]} 16. Bg5 {[%emt 0:07:20]} Nxe4 {[%emt 0:02:53]} 17. Qxe4 {[%emt 0:03:21]} Bf5 {[%emt 0:01:43]} 18. Qe2 {[%emt 0:03:39]} Re8 {[%emt 0:02:22]} 19. Be3 {[%emt 0:03:19]} a5 {[%emt 0:09:08]} 20. Rad1 {[%emt 0:03:50]} Bxc2 {[%emt 0:01:43]} 21. Qxc2 {[%emt 0:00:27]} Bf6 {[%emt 0:02:02]} 22. Rd2 {[%emt 0:02:37]} Qe6 {[%emt 0:03:31]} 23. Rfd1 {[%emt 0:02:52]} Rad8 {[%emt 0:03:28]} 24. a3 {[%emt 0:03:40]} Rxd2 {[%emt 0:01:42]} 25. Rxd2 {[%emt 0:00:18]} Bg5 {[%emt 0:01:57]} 26. Nxg5 {[%emt 0:03:29]} Qe5 {[%emt 0:02:45]} 27. h3 {[%emt 0:01:34]} Qe7 {[%emt 0:04:30]} 28. Nf3 {[%emt 0:02:46]} Qf8 {[%emt 0:03:28]} 29. Rd5 Ne5 {[%emt 0:01:27]} 30. Nxe5 {[%emt 0:03:41]} 1-0

[Event "GER-ch Youth U12W 2020"]
[Site "Willingen"]
[Date "2020.10.31"]
[Round "7.18"]
[White "Modali, Nikhilamrutha"]
[Black "Heutling, Sarah"]
[Result "1-0"]
[ECO "C54"]
[WhiteElo "1193"]
[BlackElo "1197"]
[Annotator "NA RC"]
[PlyCount "75"]
[EventDate "2020.10.27"]
[EventType "swiss"]
[EventRounds "7"]
[EventCountry "GER"]
[SourceTitle "playchess.com"]
[Source "ChessBase"]
[SourceQuality "1"]
[TimeControl "40/5400+30:1800+30"]

1. e4 {[%emt 0:00:00]} e5 {[%emt 0:00:00]} 2. Nf3 {[%emt 0:00:00]} Nc6 {[%emt 0:00:00]} 3. Bc4 {[%emt 0:00:00]} Bc5 {[%emt 0:00:00]} 4. c3 {[%emt 0:00:00]} Nf6 {[%emt 0:00:00]} 5. d3 {[%emt 0:00:01]} O-O {[%emt 0:00:14]} 6. Nbd2 {[%emt 0:01:29]} d5 {[%emt 0:00:42]} 7. exd5 {[%emt 0:01:33]} Nxd5 {[%emt 0:00:22]} 8. O-O {[%emt 0:03:16]} Bg4 {[%emt 0:05:38]} 9. Re1 {[%emt 0:03:04]} Re8 {[%emt 0:02:04]} 10. Nf1 {[%emt 0:01:20]} h6 {[%emt 0:08:05]} 11. h3 {[%emt 0:02:54]} Bh5 {[%emt 0:01:05]} 12. Ng3 {[%emt 0:00:44]} Bg6 {[%emt 0:01:48]} 13. Qb3 {[%emt 0:04:42]} Nb6 {[%emt 0:01:07]} 14. Bb5 {[%emt 0:04:58]} Na5 {[%emt 0:03:05]} 15. Qd1 {[%emt 0:03:25]} c6 {[%emt 0:00:59]} 16. b4 {[%emt 0:06:28]} cxb5 {[%emt 0:00:09]} 17. bxc5 {[%emt 0:00:19]} Nd7 {[%emt 0:00:33]} 18. d4 {[%emt 0:05:24]} exd4 {[%emt 0:01:28]} 19. Rxe8+ {[%emt 0:01:54]} Qxe8 {[%emt 0:00:09]} 20. cxd4 {[%emt 0:00:07]} Nc4 {[%emt 0:00:58]} 21. Nh4 {[%emt 0:06:52]} Bh7 {[%emt 0:01:43]} 22. Ngf5 {[%emt 0:04:34]} g6 {[%emt 0:02:14]} 23. Nxh6+ {[%emt 0:03:11]} Kg7 {[%emt 0:00:08]} 24. Bf4 {[%emt 0:05:41]} Nf6 {[%emt 0:02:04]} 25. Qf3 {[%emt 0:04:45]} Nh5 {[%emt 0:01:18]} 26. Bg5 {[%emt 0:10:38]} Qe6 {[%emt 0:02:59]} 27. g4 {[%emt 0:06:26]} Nf6 {[%emt 0:02:55]} 28. Qxb7 {[%emt 0:05:28]} Re8 {[%emt 0:01:05]} 29. Qxb5 {[%emt 0:01:40]} a6 {[%emt 0:00:24]} 30. Qb7 {[%emt 0:00:50]} Re7 {[%emt 0:00:27]} 31. Qf3 {[%emt 0:00:48]} Rc7 {[%emt 0:00:45]} 32. Rd1 {[%emt 0:01:29]} Nb2 {[%emt 0:00:23]} 33. Rb1 {[%emt 0:00:21]} Nc4 {[%emt 0:00:50]} 34. Rb8 {[%emt 0:02:22]} Na5 {[%emt 0:02:28]} 35. Rb6 {[%emt 0:01:40]} Qe8 {[%emt 0:03:05]} 36. Qxf6+ {[%emt 0:01:16]} Kf8 {[%emt 0:00:12]} 37. Qh8+ {[%emt 0:00:11]} Bg8 {[%emt 0:00:06]} 38. Qxg8# 1-0

[Event "GER-ch Youth U12W 2020"]
[Site "Willingen"]
[Date "2020.10.31"]
[Round "7.19"]
[White "Woiteck, Helena"]
[Black "Hoffmann, Sophia"]
[Result "1/2-1/2"]
[ECO "D02"]
[WhiteElo "1092"]
[BlackElo "1345"]
[Annotator "NA RC"]
[PlyCount "93"]
[EventDate "2020.10.27"]
[EventType "swiss"]
[EventRounds "7"]
[EventCountry "GER"]
[SourceTitle "playchess.com"]
[Source "ChessBase"]
[SourceQuality "1"]
[TimeControl "40/5400+30:1800+30"]

1. d4 {[%emt 0:00:00]} d5 {[%emt 0:00:00]} 2. Bf4 {[%emt 0:00:00]} Nf6 {[%emt 0:00:00]} 3. Nf3 {[%emt 0:00:00]} e6 {[%emt 0:00:59]} 4. e3 {[%emt 0:00:09]} c5 {[%emt 0:00:10]} 5. Bb5+ {[%emt 0:00:58]} Nc6 {[%emt 0:00:21]} 6. Ne5 {[%emt 0:00:32]} Bd7 {[%emt 0:00:29]} 7. c3 {[%emt 0:01:25]} Be7 {[%emt 0:10:39]} 8. Qa4 {[%emt 0:09:07]} Nxe5 {[%emt 0:12:52]} 9. Bxe5 {[%emt 0:05:48]} Bxb5 {[%emt 0:11:05]} 10. Qxb5+ {[%emt 0:00:21]} Qd7 {[%emt 0:01:38]} 11. Qxd7+ {[%emt 0:09:14]} Kxd7 {[%emt 0:03:25]} 12. Nd2 {[%emt 0:02:56]} h5 {[%emt 0:08:27]} 13. c4 {[%emt 0:01:56]} Ne8 {[%emt 0:04:41]} 14. h3 {[%emt 0:02:50]} Nc7 {[%emt 0:10:19]} 15. Bxg7 {[%emt 0:04:18]} Rhg8 {[%emt 0:00:43]} 16. Be5 {[%emt 0:00:50]} Rxg2 {[%emt 0:01:41]} 17. Bg3 {[%emt 0:01:17]} h4 {[%emt 0:11:51]} 18. Kf1 {[%emt 0:01:20]} Rxg3 {[%emt 0:03:41]} 19. fxg3 {[%emt 0:01:22]} hxg3 {[%emt 0:00:41]} 20. h4 {[%emt 0:01:16]} Rg8 {[%emt 0:03:52]} 21. Kg2 {[%emt 0:01:27]} Ne8 {[%emt 0:06:55]} 22. h5 {[%emt 0:00:46]} Nf6 {[%emt 0:02:02]} 23. h6 {[%emt 0:00:48]} b6 {[%emt 0:01:19]} 24. h7 {[%emt 0:00:19]} Rh8 {[%emt 0:00:06]} 25. Raf1 {[%emt 0:01:35]} Ke8 {[%emt 0:03:03]} 26. b3 {[%emt 0:01:48]} Rxh7 {[%emt 0:00:24]} 27. Rxh7 {[%emt 0:00:24]} Nxh7 {[%emt 0:00:05]} 28. Kxg3 {[%emt 0:00:44]} Ng5 {[%emt 0:01:44]} 29. Nf3 {[%emt 0:00:56]} Ne4+ {[%emt 0:00:23]} 30. Kg2 {[%emt 0:01:53]} Nc3 {[%emt 0:00:34]} 31. Ne5 {[%emt 0:02:52]} Nxa2 {[%emt 0:00:46]} 32. Rxf7 {[%emt 0:02:27]} Bg5 {[%emt 0:00:32]} 33. Rxa7 {[%emt 0:00:33]} Nb4 {[%emt 0:00:32]} 34. Kf2 {[%emt 0:01:46]} Nc2 {[%emt 0:00:28]} 35. Ng4 {[%emt 0:01:46]} cxd4 {[%emt 0:00:31]} 36. exd4 {[%emt 0:00:46]} Nxd4 {[%emt 0:00:29]} 37. Rg7 {[%emt 0:01:12]} Bh4+ {[%emt 0:00:32]} 38. Ke3 {[%emt 0:01:42]} Nxb3 {[%emt 0:00:27]} 39. cxd5 {[%emt 0:00:21]} exd5 {[%emt 0:00:31]} 40. Rb7 {[%emt 0:00:51]} Bd8 {[%emt 0:00:28]} 41. Rb8 {[%emt 0:30:21]} Kd7 {[%emt 0:00:54]} 42. Rb7+ {[%emt 0:00:00]} Bc7 {[%emt 0:03:47]} 43. Nf6+ {[%emt 0:00:00]} Kd6 {[%emt 0:06:45]} 44. Ne8+ {[%emt 0:00:00]} Kd7 {[%emt 0:01:29]} 45. Nxc7 {[%emt 0:00:00]} Na5 {[%emt 0:03:23]} 46. Nxd5+ {[%emt 0:00:00]} Nxb7 {[%emt 0:00:22]} 47. Nxb6+ {[%emt 0:00:00]} 1/2-1/2

[Event "GER-ch Youth U12W 2020"]
[Site "Willingen"]
[Date "2020.10.31"]
[Round "7.20"]
[White "Heuberger, Sandra"]
[Black "Marrufo, Emilia"]
[Result "0-1"]
[ECO "D10"]
[WhiteElo "1004"]
[BlackElo "788"]
[Annotator "NA RC"]
[PlyCount "124"]
[EventDate "2020.10.27"]
[EventType "swiss"]
[EventRounds "7"]
[EventCountry "GER"]
[SourceTitle "playchess.com"]
[Source "ChessBase"]
[SourceQuality "1"]
[TimeControl "40/5400+30:1800+30"]

1. d4 {[%emt 0:00:00]} d5 {[%emt 0:00:00]} 2. c4 {[%emt 0:00:00]} c6 {[%emt 0:00:00]} 3. Nc3 {[%emt 0:00:30]} Nf6 {[%emt 0:00:30]} 4. Bg5 {[%emt 0:01:02]} Ne4 {[%emt 0:00:33]} 5. Nxe4 {[%emt 0:02:35]} dxe4 {[%emt 0:00:40]} 6. e3 {[%emt 0:01:37]} g6 {[%emt 0:01:13]} 7. g3 {[%emt 0:04:39]} Bg7 {[%emt 0:01:57]} 8. Bg2 {[%emt 0:00:36]} Bf5 {[%emt 0:01:21]} 9. Ne2 {[%emt 0:04:38]} O-O {[%emt 0:01:38]} 10. O-O {[%emt 0:04:13]} Nd7 {[%emt 0:03:50]} 11. Nc3 {[%emt 0:06:47]} h6 {[%emt 0:04:05]} 12. Bf4 {[%emt 0:03:46]} Nf6 {[%emt 0:02:15]} 13. Qb3 {[%emt 0:02:19]} Qd7 {[%emt 0:01:48]} 14. Rad1 {[%emt 0:00:43]} Rad8 {[%emt 0:04:16]} 15. Be5 {[%emt 0:02:03]} Qe6 {[%emt 0:01:42]} 16. Bxf6 {[%emt 0:05:14]} Bxf6 {[%emt 0:01:27]} 17. Rfe1 {[%emt 0:01:42]} Rfe8 {[%emt 0:02:11]} 18. Ne2 {[%emt 0:05:05]} Rd7 {[%emt 0:04:42]} 19. Nf4 {[%emt 0:03:03]} Qd6 {[%emt 0:02:42]} 20. Qc2 {[%emt 0:06:29]} e5 {[%emt 0:01:06]} 21. dxe5 {[%emt 0:03:06]} Qxe5 {[%emt 0:00:35]} 22. Rxd7 {[%emt 0:01:05]} Bxd7 {[%emt 0:00:19]} 23. b3 {[%emt 0:01:52]} Bf5 {[%emt 0:04:32]} 24. Ne2 {[%emt 0:06:33]} Re7 {[%emt 0:03:01]} 25. Qd2 {[%emt 0:02:54]} Rd7 {[%emt 0:02:00]} 26. Qc2 {[%emt 0:01:40]} b6 {[%emt 0:02:50]} 27. Nd4 {[%emt 0:04:46]} Qa5 {[%emt 0:01:37]} 28. Rd1 {[%emt 0:01:19]} Bxd4 {[%emt 0:01:14]} 29. Rxd4 {[%emt 0:01:56]} Rxd4 {[%emt 0:00:51]} 30. exd4 {[%emt 0:00:16]} Qe1+ {[%emt 0:00:22]} 31. Bf1 {[%emt 0:00:11]} Bh3 {[%emt 0:00:26]} 32. Qe2 {[%emt 0:00:47]} Qxe2 {[%emt 0:00:46]} 33. Bxe2 {[%emt 0:00:07]} Kf8 {[%emt 0:00:25]} 34. d5 {[%emt 0:00:47]} cxd5 {[%emt 0:00:28]} 35. cxd5 {[%emt 0:00:05]} Ke7 {[%emt 0:00:31]} 36. a4 {[%emt 0:01:26]} a5 {[%emt 0:00:59]} 37. Bc4 {[%emt 0:00:28]} f5 {[%emt 0:00:32]} 38. Bf1 {[%emt 0:04:21]} Bxf1 {[%emt 0:00:17]} 39. Kxf1 {[%emt 0:00:04]} g5 {[%emt 0:00:15]} 40. Ke2 {[%emt 0:00:05]} f4 {[%emt 0:00:16]} 41. gxf4 {[%emt 0:32:23]} gxf4 {[%emt 0:31:21]} 42. h3 {[%emt 0:00:36]} Kd6 {[%emt 0:00:14]} 43. h4 {[%emt 0:00:55]} Kxd5 {[%emt 0:00:07]} 44. h5 {[%emt 0:00:20]} Kd4 {[%emt 0:00:10]} 45. f3 {[%emt 0:00:51]} Ke5 {[%emt 0:00:31]} 46. Kf2 {[%emt 0:00:35]} Kd4 {[%emt 0:00:25]} 47. Ke2 {[%emt 0:00:14]} e3 {[%emt 0:00:21]} 48. Ke1 {[%emt 0:00:25]} Kd3 {[%emt 0:00:15]} 49. Kd1 {[%emt 0:00:08]} Kc3 {[%emt 0:00:25]} 50. Ke2 {[%emt 0:00:12]} Kd4 {[%emt 0:00:43]} 51. Ke1 {[%emt 0:00:11]} Ke5 {[%emt 0:00:17]} 52. Ke2 {[%emt 0:00:13]} Kf5 {[%emt 0:00:36]} 53. Ke1 {[%emt 0:00:09]} Kg5 {[%emt 0:00:11]} 54. Ke2 {[%emt 0:00:07]} Kxh5 {[%emt 0:00:25]} 55. Ke1 {[%emt 0:00:07]} Kh4 {[%emt 0:00:11]} 56. Ke2 {[%emt 0:00:14]} Kg3 {[%emt 0:00:09]} 57. Ke1 {[%emt 0:00:16]} Kxf3 {[%emt 0:00:11]} 58. Kf1 {[%emt 0:00:14]} e2+ {[%emt 0:00:36]} 59. Ke1 {[%emt 0:00:06]} h5 {[%emt 0:00:09]} 60. Kd2 {[%emt 0:00:11]} Kf2 {[%emt 0:00:08]} 61. Kd3 {[%emt 0:00:38]} e1=Q 62. Kd4 {[%emt 0:00:22]} Kg3 {[%emt 0:00:00]} 0-1